bitfinex/quotes_ETHUSD_20250314
["timestamp","ask_amount","ask_price","bid_price","bid_amount"]
[1741971136226,5.15506,1939.9,1939.5,5.15585]
[1741971136745,5.15518,1939.8,1939.4,5.15615]
[1741971136924,5.92681,1939.9,1939.5,5.15587]
[1741971137129,6.519491,1939.9,1939.5,10.31171]
[1741971137326,6.519491,1939.9,1939.3,6.271048]
[1741971137327,1.364481,1939.9,1939.3,6.271048]
[1741971137527,5.98845,1939.8,1939.2,5.99]
[1741971137704,0.8332,1939.8,1939.7,5.15543]
[1741971137905,0.8332,1939.8,1939.5,5.15578]
[1741971138241,5.3590037,1940.1,1939.7,5.15543]
[1741971138537,3.7e-06,1940.1,1939.8,5.15501]
[1741971138734,3.7e-06,1940.1,1939.8,5.15507]
[1741971138926,5.15464,1940.0,1939.7,5.15531]
[1741971139130,5.1545537,1940.1,1939.7,5.15531]
[1741971139330,5.1545537,1940.1,1939.8,5.15516]
[1741971139752,5.15472,1940.0,1939.6,11.1455]
[1741971140248,5.1545537,1940.1,1939.7,5.1554]
[1741971140249,5.1544437,1940.1,1939.7,5.1554]
[1741971140438,10.3090637,1940.1,1939.7,5.1554]
[1741971140612,5.15465,1940.0,1939.6,11.1456]
[1741971140812,10.30946,1940.0,1939.6,11.1456]
[1741971141013,5.98409,1939.8,1939.6,5.99]
[1741971141228,0.8289,1939.8,1939.6,5.99]
[1741971141429,5.15554,1939.7,1939.3,5.15632]
[1741971141713,5.15605,1939.5,1939.2,5.1567]
[1741971142018,0.8289,1939.4,1939.1,11.14678]
[1741971142412,0.7744,1939.7,1939.2,0.80706346]
[1741971142613,5.92989,1939.7,1939.3,10.31261]
[1741971142921,5.92989,1939.7,1939.4,5.1562]
[1741971143117,0.763,1939.9,1939.6,5.15558]
[1741971143925,5.15519,1939.8,1939.5,5.15588]
[1741971144135,5.91798,1939.9,1939.5,5.15578]
[1741971144643,5.15554,1939.7,1939.3,5.15636]
[1741971144847,5.9187,1939.6,1939.3,5.15636]
[1741971145012,0.763,1939.6,1939.3,5.15636]
[1741971145211,0.763,1939.6,1939.3,10.31269]
[1741971145446,0.763,1939.6,1939.3,5.15633]
[1741971145620,0.763,1939.6,1939.4,5.15613]
[1741971145942,0.763,1939.6,1939.3,5.15633]
[1741971146315,5.91873,1939.6,1939.3,5.15633]
[1741971146544,5.91873,1939.6,1939.3,5.20788974]
[1741971146717,0.7597,1939.8,1939.5,5.15596]
[1741971146912,5.91497,1939.8,1939.4,5.15602]
[1741971147147,0.7597,1939.8,1939.6,5.15569]
[1741971148113,0.7597,1939.8,1939.4,5.95399]
[1741971148313,0.7597,1939.8,1939.2,5.15649]
[1741971148547,0.7597,1939.5,1939.2,5.15651]
[1741971148748,0.7597,1939.5,1939.2,1.114651]
[1741971148936,5.91576,1939.5,1939.1,16.3038]
[1741971149142,5.91576,1939.5,1939.2,5.15675]
[1741971149455,0.7597,1939.5,1939.3,5.15648]
[1741971149950,8.9146,1940.0,1939.6,5.15551]
[1741971150153,5.9146,1940.0,1939.6,5.15551]
[1741971150470,5.9146,1940.0,1939.6,5.671061]
[1741971150949,0.7597,1940.0,1939.7,5.15528]
[1741971151457,0.7597,1940.0,1939.8,5.15515]
[1741971151652,0.7597,1940.0,1939.8,5.15504]
[1741971151952,3.7e-06,1940.1,1939.9,5.1549]
[1741971152333,3.7e-06,1940.1,1940.0,5.15463]
[1741971152847,3.7e-06,1940.1,1940.0,5.98957269]
[1741971153049,3.7e-06,1940.1,1940.0,11.97957269]
[1741971153252,3.7e-06,1940.1,1940.0,11.92803]
[1741971154254,3.7e-06,1940.1,1940.0,11.92803]
[1741971155140,3.7e-06,1940.1,1940.0,14.92803]
[1741971155353,3.7e-06,1940.1,1940.0,17.45406543]
[1741971155850,3.7e-06,1940.1,1940.0,14.45406543]
[1741971156827,3.7e-06,1940.1,1940.0,11.14463]
[1741971158435,3.7e-06,1940.1,1940.0,5.15463]
[1741971158829,3.7e-06,1940.1,1940.0,5.20616851]
[1741971159360,3.7e-06,1940.1,1940.0,5.15463]
[1741971160228,3.7e-06,1940.1,1940.0,5.20616852]
[1741971160632,3.7e-06,1940.1,1940.0,5.15463]
[1741971160833,3.7e-06,1940.1,1939.9,6.185794]
[1741971161058,3.7e-06,1940.1,1939.9,5.1548]
[1741971161255,3.7e-06,1940.1,1940.0,5.15463]
[1741971161465,3.7e-06,1940.1,1939.9,5.1548]
[1741971162035,5.15473,1940.0,1939.6,5.671241]
[1741971162240,5.1551,1939.9,1939.4,11.93598]
[1741971162440,5.96865,1940.0,1939.5,5.20740136]
[1741971162768,3.7e-06,1940.1,1939.6,0.79]
[1741971163067,3.7e-06,1940.1,1939.9,5.15487]
[1741971163266,3.7e-06,1940.1,1939.9,5.15471]
[1741971164066,3.7e-06,1940.1,1940.0,5.15463]
[1741971164667,3.7e-06,1940.1,1940.0,6.23710389]
[1741971165243,3.7e-06,1940.1,1940.0,6.185564]
[1741971166172,3.7e-06,1940.1,1940.0,5.15463]
[1741971166533,3.7e-06,1940.1,1939.8,5.1551]
[1741971166740,0.7622037,1940.1,1939.8,5.1551]
[1741971167172,0.7622037,1940.1,1939.9,5.15488]
[1741971167349,0.7622037,1940.1,1939.9,10.30961]
[1741971167545,0.7622037,1940.1,1939.9,5.15473]
[1741971167866,3.7e-06,1940.1,1940.0,5.15463]
[1741971168067,3.7e-06,1940.1,1940.0,5.20617124]
[1741971168234,3.7e-06,1940.1,1940.0,5.15463]
[1741971168968,0.75032038,1940.3,1940.0,5.15463]
[1741971169880,0.75032038,1940.3,1940.0,10.30912]
[1741971170189,0.75032038,1940.3,1940.0,10.30901]
[1741971170693,5.90419038,1940.3,1939.9,5.15473]
[1741971170896,12.16399442,1940.3,1939.9,5.15473]
[1741971171040,5.15422,1940.2,1939.8,5.15515]
[1741971171239,5.15438,1940.1,1939.7,11.1454]
[1741971171449,5.15464,1940.0,1939.7,11.1454]
[1741971171671,5.15503,1939.9,1939.7,5.99]
[1741971171891,6.185996,1939.9,1939.5,5.15582]
[1741971172070,0.8195,1939.8,1939.5,10.31158]
[1741971172276,11.32813,1940.0,1939.7,5.15541]
[1741971172483,6.1735,1940.0,1939.9,5.1549]
[1741971172682,6.1735,1940.0,1939.8,5.15506]
[1741971173287,6.1735,1940.0,1939.7,5.15542]
[1741971173786,0.7556,1940.4,1939.8,0.8839471]
[1741971174093,5.15301,1940.7,1940.3,5.15384]
[1741971174402,5.15301,1940.7,1940.3,5.15372]
[1741971174583,1.641615,1940.7,1940.2,5.15409]
[1741971174787,0.8282,1940.5,1940.1,5.15435]
[1741971175001,5.15371,1940.4,1940.0,5.15445]
[1741971175141,5.15394,1940.3,1940.0,5.15445]
[1741971175340,0.8282,1940.2,1939.9,5.15487]
[1741971175576,0.8282,1940.2,1939.9,5.15474]
[1741971175761,7.096017,1940.2,1939.6,1.19024699]
[1741971175966,5.15446,1940.1,1939.7,5.15524]
[1741971176166,5.15446,1940.1,1939.8,5.15506]
[1741971176477,5.97266,1940.0,1939.6,5.15554]
[1741971176678,5.15493,1939.9,1939.6,5.15554]
[1741971176858,5.97263,1940.0,1939.6,5.15554]
[1741971177180,0.27,1957.3,1939.2,5.15653]
[1741971177181,0.24644754,1941.4,1939.9,4.48776715]
[1741971177481,0.8179,1941.8,1941.2,0.8254]
[1741971177790,0.8179,1941.8,1940.9,0.8254]
[1741971178074,5.2641937,1942.1,1940.8,3.0]
[1741971178075,5.1513,1941.3,1940.8,10.30473]
[1741971178252,0.8179,1941.4,1940.8,5.15232]
[1741971178461,5.15134,1941.3,1940.8,5.15236]
[1741971178647,5.15147,1941.2,1940.8,5.15236]
[1741971178847,5.15148,1941.2,1940.8,5.15236]
[1741971179276,0.8179,1941.4,1940.8,5.15227]
[1741971179471,11.52095,1941.4,1940.9,5.15207]
[1741971179669,1.152095,1941.3,1940.9,5.15207]
[1741971180275,6.303335,1941.3,1940.9,5.15207]
[1741971180581,11.454765,1941.3,1940.8,5.15227]
[1741971180753,6.303335,1941.3,1940.8,10.30465]
[1741971181177,6.303335,1941.3,1940.8,5.15227]
[1741971181381,5.15185,1941.1,1940.6,5.1529]
[1741971181587,5.15226,1940.9,1940.5,5.15315]
[1741971181783,5.15251,1940.8,1940.4,5.15357]
[1741971181989,10.68826,1940.9,1940.5,5.15326]
[1741971182294,6.604826,1940.9,1940.5,5.1531]
[1741971182499,0.7926,1941.1,1940.9,5.15214]
[1741971182703,0.7926,1941.1,1940.8,5.1525]
[1741971182910,0.7926,1941.3,1941.0,5.15178]
[1741971183210,5.94472,1941.0,1940.5,5.1533]
[1741971183418,6.539192,1941.0,1940.5,5.1533]
[1741971183770,1.387072,1941.0,1940.6,10.30593]
[1741971183968,6.539062,1941.0,1940.6,5.15293]
[1741971184172,5.15229,1940.9,1940.5,5.15328]
[1741971184426,6.539072,1941.0,1940.6,5.15302]
[1741971184985,0.6539072,1940.9,1940.4,0.7539]
[1741971185193,5.15291,1940.7,1940.3,5.1537]
[1741971185522,10.7107,1940.8,1940.4,5.15356]
[1741971185523,0.8238,1940.6,1940.4,5.15356]
[1741971185737,6.3818,1940.8,1940.5,5.15331]
[1741971185891,6.3818,1940.8,1940.5,5.15327]
[1741971186092,6.3818,1940.8,1940.5,10.30638]
[1741971186393,0.8104,1941.0,1940.6,0.05152665]
[1741971186615,0.8104,1941.0,1940.6,5.15294]
[1741971186798,5.96247,1941.0,1940.6,5.15294]
[1741971187117,0.8104,1941.0,1940.7,5.15268]
[1741971187319,0.8104,1941.0,1940.8,5.15242]
[1741971187619,0.8104,1941.0,1940.7,5.15264]
[1741971187807,0.8104,1941.0,1940.8,5.1524]
[1741971188118,0.8104,1941.0,1940.7,5.15264]
[1741971188625,0.8104,1941.0,1940.7,10.30519]
[1741971188932,1.44604,1941.0,1940.5,5.15318]
[1741971189291,1.44604,1941.0,1940.6,5.2044641]
[1741971189525,1.44604,1941.0,1940.7,5.15268]
[1741971189741,1.44604,1941.0,1940.7,5.15259]
[1741971190021,6.59811,1941.0,1940.5,5.15307]
[1741971190208,5.15254,1940.8,1940.3,11.14381]
[1741971190413,5.15293,1940.7,1940.3,11.14375]
[1741971190591,0.55,1940.7,1940.2,5.15394]
[1741971190924,15.85044,1940.6,1940.2,5.15394]
[1741971191110,5.96792,1940.5,1940.1,5.15434]
[1741971191289,0.8146,1940.5,1940.2,5.15406]
[1741971191493,0.8146,1940.5,1940.2,10.30807]
[1741971191693,0.8146,1940.5,1940.1,0.05153763]
[1741971191929,0.8146,1940.5,1940.4,5.15357]
[1741971192096,5.544,1940.6,1940.3,5.15375]
[1741971192299,5.544,1940.6,1940.3,5.15373]
[1741971193723,0.7502,1940.7,1940.5,5.15331]
[1741971194095,0.7502,1940.7,1940.4,5.15354]
[1741971194411,0.7502,1940.7,1940.5,5.15321]
[1741971194590,0.7502,1940.7,1940.4,10.30695]
[1741971195015,6.2782,1940.7,1940.0,6.7993]
[1741971195196,6.2782,1940.7,1940.4,5.1534]
[1741971196421,6.2782,1940.7,1940.1,0.67993]
[1741971196594,6.2662,1940.7,1940.1,8.83407]
[1741971196795,11.41901,1940.7,1940.3,5.15363]
[1741971197113,6.2662,1940.7,1940.4,5.15347]
[1741971197529,6.2662,1940.7,1940.5,5.15331]
[1741971198302,6.2662,1940.7,1940.4,1.03588329]
[1741971198303,5.15307,1940.6,1940.4,1.03588329]
[1741971198501,5.15307,1940.6,1940.3,5.15372]
[1741971198700,5.15307,1940.6,1940.2,5.1541]
[1741971199103,10.30632,1940.6,1940.2,5.1541]
[1741971199333,5.15342,1940.5,1940.1,5.15411]
[1741971199701,5.15366,1940.4,1940.0,5.15463]
[1741971199906,5.15366,1940.4,1939.8,6.8085]
[1741971199907,0.757,1940.3,1939.8,5.99]
[1741971200106,5.511,1940.2,1939.8,5.15497]
[1741971200529,5.511,1940.2,1939.9,5.1549]
[1741971200729,5.511,1940.2,1939.8,5.1551]
[1741971200942,10.66514,1940.2,1939.8,10.31011]
[1741971201116,10.66514,1940.2,1939.8,5.15501]
[1741971201317,10.66514,1940.2,1939.8,10.31006]
[1741971201519,5.511,1940.2,1939.9,5.15486]
[1741971201727,5.511,1940.2,1939.9,10.30961]
[1741971201963,5.511,1940.2,1939.9,5.15475]
[1741971202246,10.66511,1940.2,1939.8,5.15508]
[1741971202403,10.66511,1940.2,1939.8,10.31012]
[1741971202605,10.66511,1940.2,1939.8,5.15504]
[1741971202835,10.66511,1940.2,1939.8,10.31004]
[1741971203241,5.511,1940.2,1939.9,5.1548]
[1741971203409,5.511,1940.2,1939.8,10.31007]
[1741971203840,10.66512,1940.2,1939.8,5.155]
[1741971204150,10.66512,1940.2,1939.8,10.30995]
[1741971204703,5.511,1940.2,1939.8,1.03614981]
[1741971204905,5.511,1940.2,1940.0,5.15452]
[1741971205234,0.757,1940.3,1940.0,5.15452]
[1741971205235,5.48,1940.1,1940.0,5.15452]
[1741971205532,5.48,1940.1,1939.9,5.15485]
[1741971205935,5.48,1940.1,1939.7,5.15537]
[1741971206124,0.8149,1940.0,1939.7,5.15537]
[1741971206324,5.155,1939.9,1939.5,5.15584]
[1741971206526,5.155,1939.9,1939.5,10.31163]
[1741971206919,5.155,1939.9,1939.5,5.15592]
[1741971207107,5.15551,1939.7,1939.3,5.15636]
[1741971207310,11.44461,1939.6,1939.3,5.15634]
[1741971207511,6.2889,1939.6,1939.3,5.15634]
[1741971207713,11.44462,1939.6,1939.3,5.15634]
[1741971208847,6.2889,1939.6,1939.1,0.0515628]
[1741971209015,6.2889,1939.6,1939.5,5.15596]
[1741971209610,5.474,1939.6,1939.5,5.15596]
[1741971209817,5.461,1939.8,1939.4,0.0515561]
[1741971210033,5.461,1939.8,1939.7,5.15543]
[1741971210638,6.2201,1940.1,1939.8,5.15515]
[1741971211045,6.2201,1940.1,1939.7,5.15543]
[1741971211046,11.37448,1940.1,1939.7,5.15543]
[1741971211354,5.15466,1940.0,1939.6,5.15569]
[1741971211520,11.37457,1940.1,1939.7,10.31071]
[1741971211863,0.7591,1941.0,1940.0,9.64484896]
[1741971212020,0.7591,1941.0,1940.7,5.15268]
[1741971212216,0.7591,1941.0,1940.6,5.15302]
[1741971212447,5.506,1940.9,1940.7,5.15258]
[1741971212647,6.13251,1940.9,1940.7,5.15258]
[1741971212854,6.13251,1940.9,1940.6,5.15298]
[1741971213022,5.15295,1940.7,1940.3,5.15382]
[1741971213347,0.798,1940.6,1940.1,5.99]
[1741971213548,0.798,1940.6,1940.4,5.15351]
[1741971213753,0.798,1940.6,1940.4,5.15341]
[1741971213952,6.303,1940.8,1940.6,5.15302]
[1741971214158,11.45559,1940.8,1940.3,5.15369]
[1741971214356,0.55,1940.7,1940.4,5.15342]
[1741971214530,5.7028,1940.7,1940.4,5.15342]
[1741971214726,5.7028,1940.7,1940.3,5.15377]
[1741971216545,5.15313,1940.6,1940.2,5.15404]
[1741971216853,7.418739,1940.7,1940.1,5.99]
[1741971217050,5.7029,1940.7,1940.4,5.15356]
[1741971217449,6.303,1940.8,1940.5,5.1532]
[1741971217756,6.298,1940.8,1940.5,5.15314]
[1741971218127,6.298,1940.8,1940.5,10.30628]
[1741971218323,6.298,1940.8,1940.6,5.15302]
[1741971218524,6.8603,1941.0,1940.7,5.15277]
[1741971218725,6.2533,1941.0,1940.7,5.15277]
[1741971219044,6.2533,1941.0,1940.8,5.1524]
[1741971219045,6.2553,1941.0,1940.8,5.1524]
[1741971219352,6.2553,1941.0,1940.8,10.30477]
[1741971219564,0.7603,1941.0,1940.8,5.15237]
[1741971219738,6.2513,1941.0,1940.7,5.15275]
[1741971220426,6.2513,1941.0,1940.7,1.0357304]
[1741971220665,0.7603,1941.0,1940.8,10.30475]
[1741971220871,0.7603,1941.0,1940.9,5.15224]
[1741971221832,5.483,1941.1,1940.9,5.15224]
[1741971222035,5.483,1941.1,1940.8,5.15248]
[1741971222235,5.483,1941.1,1940.9,5.15224]
[1741971222452,5.483,1941.1,1940.8,5.15245]
[1741971222656,5.483,1941.1,1940.8,5.15234]
[1741971222945,5.483,1941.1,1940.8,11.412999]
[1741971223133,5.483,1941.1,1940.8,6.260659]
[1741971224357,5.483,1941.1,1940.8,11.412979]
[1741971224551,5.483,1941.1,1940.8,6.260589]
[1741971224769,0.39649214,1941.5,1940.9,0.05152178]
[1741971225065,17.049,1942.0,1941.0,10.48039896]
[1741971225066,0.7958,1941.8,1941.0,10.48039896]
[1741971225366,0.7958,1941.8,1941.5,10.30115]
[1741971225367,6.2598,1941.8,1941.5,10.30115]
[1741971225572,6.2598,1941.8,1941.6,5.15037]
[1741971225780,6.2598,1941.8,1941.6,5.15021]
[1741971226266,6.2598,1941.8,1941.5,5.15064]
[1741971226473,5.15013,1941.7,1941.2,5.96427]
[1741971226763,7.400759,1941.8,1941.0,5.99]
[1741971226764,5.1508,1941.5,1941.0,17.12604]
[1741971226963,5.91412,1941.4,1941.0,5.15173]
[1741971227141,5.91412,1941.4,1941.0,10.30359]
[1741971227470,5.91412,1941.4,1941.0,5.15173]
[1741971227671,5.91412,1941.4,1940.9,5.15224]
[1741971227672,10.61227,1941.3,1940.9,5.15224]
[1741971227842,5.461,1941.3,1941.0,5.15184]
[1741971228043,5.461,1941.3,1941.0,5.15179]
[1741971228243,5.461,1941.3,1941.2,5.15145]
[1741971228462,0.7674,1941.7,1940.8,5.98499]
[1741971228664,0.7674,1941.7,1941.4,5.15074]
[1741971228852,5.91762,1941.7,1941.3,5.15115]
[1741971229058,5.91762,1941.7,1941.2,5.15132]
[1741971229357,5.468,1941.6,1941.3,5.151]
[1741971229559,1.81253274,1941.9,1941.2,5.15145]
[1741971229771,0.7734,1941.9,1941.3,0.56665507]
[1741971229974,0.7734,1941.9,1941.7,5.15004]
[1741971230277,5.92315,1941.9,1941.5,5.15051]
[1741971230442,5.92315,1941.9,1941.5,10.30106]
[1741971230642,0.7734,1941.9,1941.5,5.1505]
[1741971230864,0.7734,1941.9,1941.6,5.15039]
[1741971231167,0.7734,1941.9,1941.6,6.180259]
[1741971231686,5.92302,1941.9,1941.4,11.07596]
[1741971231999,5.70005,1941.8,1941.4,5.15076]
[1741971232299,0.55,1941.8,1941.4,5.15076]
[1741971232437,5.69997,1941.8,1941.4,5.15076]
[1741971232642,0.55,1941.8,1941.4,5.15076]
[1741971232842,0.55,1941.8,1941.4,5.67098661]
[1741971233894,0.55,1941.8,1941.5,5.15054]
[1741971234669,0.7734,1941.9,1941.5,5.1505]
[1741971234874,5.14997,1941.8,1941.4,5.67108661]
[1741971235271,0.1151237,1942.1,1941.5,0.7992]
[1741971235471,0.1151237,1942.1,1941.8,5.14975]
[1741971236268,0.1151237,1942.1,1941.8,5.664815]
[1741971236487,0.1151237,1942.1,1941.9,5.14936]
[1741971236693,0.1151237,1942.1,1941.9,10.2988]
[1741971236892,0.1151237,1942.1,1941.9,5.14936]
[1741971237392,0.1151237,1942.1,1942.0,5.14933]
[1741971237595,0.1151237,1942.1,1942.0,6.23069013]
[1741971238189,0.1151237,1942.1,1942.0,13.04279013]
[1741971238394,0.1151237,1942.1,1942.0,12.991299]
[1741971241381,0.1151237,1942.1,1942.0,5.99]
[1741971241579,0.1151237,1942.1,1941.3,5.15096]
[1741971241580,5.93399,1942.0,1941.5,11.92983]
[1741971241758,5.93394,1942.0,1941.5,5.93966]
[1741971241965,5.14986,1941.8,1941.4,5.15089]
[1741971242295,5.15033,1941.7,1941.0,6.7792]
[1741971242498,5.15041,1941.6,1941.2,5.15134]
[1741971242699,5.15009,1941.8,1941.3,5.15113]
[1741971242865,5.15024,1941.7,1941.2,5.1512]
[1741971243206,5.15,1941.8,1941.4,10.30159]
[1741971243419,5.15,1941.8,1941.4,5.15077]
[1741971243576,5.15,1941.8,1941.4,6.180964]
[1741971243775,5.97159,1941.9,1941.5,5.15052]
[1741971244021,0.822,1941.9,1941.6,5.15036]
[1741971244378,5.479,1942.0,1941.7,5.14991]
[1741971244616,5.479,1942.0,1941.7,1.030028]
[1741971244818,5.479,1942.0,1941.6,5.15029]
[1741971244819,10.62833,1942.0,1941.6,5.15029]
[1741971245113,5.1496,1941.9,1941.6,5.15037]
[1741971245426,5.92247,1941.8,1941.4,10.30171]
[1741971245578,5.92247,1941.8,1941.3,5.15096]
[1741971245579,5.15021,1941.7,1941.3,5.15096]
[1741971245779,5.92248,1941.8,1941.3,5.15115]
[1741971245977,5.92248,1941.8,1941.4,5.665985]
[1741971246211,0.1151237,1942.1,1941.5,0.7763]
[1741971246376,5.14971,1941.9,1941.4,5.665815]
[1741971246702,5.15039,1941.6,1941.3,5.15117]
[1741971247072,10.66515,1941.7,1940.9,5.15206]
[1741971247073,5.515,1941.7,1940.9,5.15206]
[1741971247410,5.515,1941.7,1940.8,0.7509]
[1741971247411,5.94997,1941.2,1940.8,5.15248]
[1741971247611,11.46497,1941.2,1940.8,5.15248]
[1741971247778,5.15214,1941.0,1940.6,5.15293]
[1741971248105,5.15177,1941.1,1940.7,5.15277]
[1741971248309,6.3133,1941.2,1940.8,0.05152425]
[1741971248495,6.3133,1941.2,1940.9,5.1521]
[1741971248700,6.3133,1941.2,1941.0,5.15189]
[1741971248877,5.515,1941.2,1941.0,5.15189]
[1741971249289,5.515,1941.2,1941.0,5.15182]
[1741971249485,6.3297,1941.6,1940.8,0.8253]
[1741971249712,0.8177,1941.6,1941.2,5.1512]
[1741971249881,0.8177,1941.6,1940.9,5.99]
[1741971249882,5.9681,1941.6,1941.3,5.15106]
[1741971250082,5.9681,1941.6,1941.1,10.30311]
[1741971250279,5.9681,1941.6,1941.2,5.15123]
[1741971250595,0.8177,1941.6,1940.9,5.99]
[1741971250777,5.96822,1941.6,1941.2,5.1513]
[1741971251111,0.8177,1941.6,1941.4,5.15077]
[1741971252280,0.8177,1941.6,1941.4,10.30156]
[1741971252611,10.66169,1941.9,1941.4,10.30156]
[1741971252612,5.90586,1941.8,1941.4,5.15077]
[1741971252816,5.90585,1941.8,1941.4,6.181044]
[1741971253179,5.90585,1941.8,1941.4,11.331844]
[1741971253379,5.90585,1941.8,1941.4,6.180994]
[1741971254080,11.05596,1941.8,1941.4,5.1508]
[1741971254314,5.15027,1941.7,1941.3,10.30209]
[1741971254481,5.15027,1941.7,1941.3,10.30205]
[1741971255010,5.15027,1941.7,1941.3,5.15102]
[1741971255304,5.15024,1941.7,1941.3,5.15102]
[1741971255614,5.15024,1941.7,1941.3,5.15101]
[1741971255811,5.740854,1941.7,1941.3,10.30202]
[1741971255982,5.15024,1941.7,1941.4,5.1509]
[1741971256384,0.7559,1941.8,1941.5,5.15046]
[1741971256915,10.63561,1941.9,1941.6,5.1503]
[1741971257211,10.63561,1941.9,1941.5,5.15058]
[1741971257381,5.14996,1941.8,1941.5,1.110356]
[1741971257783,5.14996,1941.8,1941.5,6.260976]
[1741971258310,10.63561,1941.9,1941.5,6.260976]
[1741971258311,10.63567,1941.9,1941.5,6.31233717]
[1741971258711,15.78551,1941.9,1941.5,6.31233717]
[1741971258891,5.14988,1941.8,1941.4,5.15088]
[1741971259091,10.63567,1941.9,1941.1,5.99]
[1741971259092,10.30059,1941.7,1941.3,5.15106]
[1741971259280,5.15046,1941.6,1941.3,5.15106]
[1741971259484,5.15046,1941.6,1941.2,5.96989]
[1741971259723,5.92726,1941.6,1941.2,10.30265]
[1741971260011,5.92726,1941.6,1941.2,5.15129]
[1741971260213,11.07787,1941.6,1941.2,5.15129]
[1741971260793,0.7768,1941.6,1941.3,5.20249943]
[1741971261111,0.7768,1941.6,1941.3,0.05150943]
[1741971261484,0.7768,1941.6,1941.3,5.15099]
[1741971262416,0.7768,1941.6,1941.4,5.15091]
[1741971262816,10.62025,1941.7,1941.3,5.15099]
[1741971263119,15.77057,1941.7,1941.3,5.15099]
[1741971263730,5.1505,1941.6,1941.2,5.15142]
[1741971263888,5.1506,1941.6,1941.2,5.15144]
[1741971264216,5.15102,1941.4,1941.1,5.20317943]
[1741971264392,5.95902,1941.4,1941.1,5.15167]
[1741971264725,0.808,1941.4,1941.1,5.1515]
[1741971264899,0.808,1941.4,1941.1,5.76924747]
[1741971265213,0.808,1941.4,1941.1,10.92079747]
[1741971265992,0.808,1941.4,1940.7,6.8011]
[1741971266219,5.15162,1941.2,1940.8,5.15241]
[1741971266519,5.15181,1941.1,1940.8,5.15241]
[1741971266719,5.15233,1940.9,1940.7,5.99]
[1741971266927,5.15233,1940.9,1940.6,5.15303]
[1741971267225,5.92598,1941.0,1940.6,5.15287]
[1741971267408,11.07816,1941.0,1940.6,5.15287]
[1741971267596,5.92598,1941.0,1940.6,5.15287]
[1741971267787,4.49039896,1941.3,1940.7,0.8128]
[1741971267992,5.96642,1941.4,1940.9,5.15216]
[1741971268218,10.30271,1941.3,1940.9,5.20367664]
[1741971268524,10.3027,1941.3,1940.9,5.15216]
[1741971268710,5.15133,1941.3,1940.9,10.30428]
[1741971269020,5.15133,1941.3,1940.9,5.15212]
[1741971269223,0.8154,1941.4,1941.1,5.15152]
[1741971269395,0.8154,1941.4,1940.9,5.667452]
[1741971269396,5.9664,1941.4,1940.9,5.667452]
[1741971269720,5.1513,1941.3,1941.0,5.15192]
[1741971269921,5.1513,1941.3,1940.9,5.667452]
[1741971270220,5.15171,1941.2,1940.8,5.99]
[1741971270388,5.15183,1941.1,1940.8,6.04151877]
[1741971270592,5.15183,1941.1,1940.8,11.19401877]
[1741971270794,5.15183,1941.1,1940.8,11.1425]
[1741971271003,5.15199,1941.0,1940.8,5.99]
[1741971271207,5.15199,1941.0,1940.6,5.15301]
[1741971271208,5.93641,1941.0,1940.6,5.15301]
[1741971271425,5.93641,1941.0,1940.5,5.15329]
[1741971271426,5.15238,1940.9,1940.5,5.15305]
[1741971271922,5.15238,1940.9,1940.5,10.30619]
[1741971272235,11.3996,1941.0,1940.4,11.14341]
[1741971272236,6.2474,1941.0,1940.4,11.14341]
[1741971272405,6.2474,1941.0,1940.6,5.15286]
[1741971272406,16.55155,1941.0,1940.6,5.15286]
[1741971273639,5.15226,1940.9,1940.6,5.15286]
[1741971273821,11.39941,1941.0,1940.5,5.15328]
[1741971274021,5.15233,1940.9,1940.5,10.30642]
[1741971274210,11.39941,1941.0,1940.6,5.15298]
[1741971274611,16.55159,1941.0,1940.6,5.20450438]
[1741971274928,11.39941,1941.0,1940.6,10.35739438]
[1741971275127,11.39941,1941.0,1940.6,5.20439438]
[1741971275332,5.439,1941.0,1940.8,5.15227]
[1741971275631,5.439,1941.0,1940.8,5.746217]
[1741971275936,10.59347,1941.2,1940.9,5.15222]
[1741971276105,5.442,1941.2,1940.9,5.20373679]
[1741971276302,5.442,1941.2,1940.9,5.20362679]
[1741971276519,5.9297,1941.3,1940.9,5.73183738]
[1741971276724,5.15161,1941.2,1940.8,11.1425]
[1741971276933,5.15173,1941.1,1940.8,11.1425]
[1741971277332,5.1521,1941.0,1940.8,5.99]
[1741971277945,5.15277,1940.7,1940.3,6.7411]
[1741971278133,5.15277,1940.7,1940.4,5.82767]
[1741971278434,5.15325,1940.6,1940.0,6.7411]
[1741971278735,5.1534,1940.5,1940.1,5.15425]
[1741971279104,5.1534,1940.5,1940.1,5.15415]
[1741971279834,5.1534,1940.5,1940.2,5.15409]
[1741971280006,5.1534,1940.5,1940.1,10.30836]
[1741971280203,0.7508,1940.4,1940.1,6.859276]
[1741971280526,5.15311,1940.6,1940.2,5.15409]
[1741971280836,5.90391,1940.6,1940.2,5.15393]
[1741971281637,5.90391,1940.6,1940.2,5.15392]
[1741971282253,11.05716,1940.6,1940.2,5.15392]
[1741971283638,5.90391,1940.6,1940.2,5.15392]
[1741971283811,5.15332,1940.5,1940.2,5.15392]
[1741971284413,5.15332,1940.5,1940.1,5.15418]
[1741971284633,5.15332,1940.5,1940.1,5.744708]
[1741971285358,5.90391,1940.6,1940.1,5.744848]
[1741971285712,10.55031,1940.5,1940.2,5.15402]
[1741971286654,15.7038,1940.5,1940.1,5.744848]
[1741971286839,15.7038,1940.5,1940.0,5.9057]